Cogmind - Beta 13 @@@ ROGUE MODE // 2024.05.10 @ 13:07:06 Player: TinyBoulder Result: Destroyed by as-15570 with Assembled Rifle Performance ------------- Evolutions (0) 0 Regions Visited (2) 400 Robots Destroyed (13) 65 Value Destroyed (136) 136 Prototype IDs (0) 0 Alien Tech Used (0) 0 Bonus (0) 0 TOTAL SCORE: 601 Bonus ------- None Cogmind --------- Core Integrity 0/250 Matter 281/300 Energy 100/100 System Corruption 0% Temperature Cool (0) Movement Core (250) Ox4 Location -10/Mines Parts ------- > --- POWER (1) -------- (None) > --- PROPULSION (2) --- (None) > --- UTILITY (2) ------ Medium Storage Unit > --- WEAPON (2) ------- Hammer Mining Claw > --- INVENTORY (10) --- Improved Aluminum Leg Improved Aluminum Leg Cooling System Cooling System Large Storage Unit High-capacity Matter Pod (23) Medium Laser Assault Rifle Light Assault Rifle Peak State ------------ > --- POWER ------------ Ion Engine > --- PROPULSION ------- Improved Aluminum Leg Improved Aluminum Leg > --- UTILITY ---------- Cooling System Small Storage Unit > --- WEAPON ----------- Medium Laser Hammer > --- INVENTORY -------- Light Ion Engine Improved Aluminum Leg Improved Aluminum Leg Cooling System High-capacity Matter Pod Assault Rifle Light Assault Rifle [Rating: 11] Favorites ----------- Power Ion Engine Engine Ion Engine Propulsion Improved Aluminum Leg Leg Improved Aluminum Leg Utility Cooling System Device Cooling System Storage Small Storage Unit Weapon Hammer Energy Gun Medium Laser Ballistic Gun Assault Rifle Impact Weapon Hammer Slashing Weapon Mining Claw Build | -11 -10 -10 ------- Run | Yrd Mat Min Slots Evolved . | . . . Power . | . . . Propulsion . | . . . Utility . | . . . Weapon . | . . . Parts Attached 21 | 6 14 1 Power 3 | 1 1 1 Engine 3 | 1 1 1 Core . | . . . Reactor . | . . . Propulsion 7 | 2 5 . Treads . | . . . Leg 7 | 2 5 . Wheel . | . . . Hover . | . . . Flight . | . . . Utility 5 | 1 4 . Device 2 | . 2 . Storage 3 | 1 2 . Processor . | . . . Hackware . | . . . Protection . | . . . Artifact . | . . . Weapon 6 | 2 4 . Energy Gun 1 | . 1 . Energy Cannon . | . . . Ballistic Gun 2 | 2 . . Ballistic Cannon . | . . . Launcher . | . . . Special Weapon . | . . . Impact Weapon 1 | . 1 . Slashing Weapon 2 | . 2 . Piercing Weapon . | . . . Special Melee Weapon . | . . . Unidentified Prototypes . | . . . Parts Lost 5 | . . 5 Power 2 | . . 2 Propulsion 2 | . . 2 Utility 1 | . . 1 Weapon . | . . . Highest Loss Streak 3 | . . 3 To Critical Strikes . | . . . Average Slot Usage (%) 95 | . 98 79 Engine 13 | . 14 11 Leg 26 | . 27 24 Device 11 | . 13 . Storage 14 | . 14 14 Energy Gun 7 | . 9 . Ballistic Gun 4 | . 6 . Impact Weapon 9 | . 8 14 Slashing Weapon 5 | . 3 14 Naked Turns . | . . . Heaviest Build 31 | 13 31 17 Greatest Support 26 | 20 26 26 Greatest Overweight (x) 1 | . 1 . Average Overweight (x) . | . . . Largest Inventory Capacity 15 | 8 15 10 Average Capacity 8 | 7 8 10 Most Carried 10 | 1 10 10 Average Carried 6 | . 6 9 Final Capacity 10 | 8 10 10 Final Carried 10 | 1 10 9 Class Distribution -------------------- 100% | Mutant Dominant Class ---------------- Mutant | -10/Materials Mutant | -10/Mines Resources | -11 -10 -10 ----------- Run | Yrd Mat Min Matter Collected 425 | 248 145 32 Remotely . | . . . Salvage Created 192 | . 145 47 Parts 19 | . 19 . Haulers Intercepted . | . . . Recyclers Shooed . | . . . Parts Field Recycled . | . . . Retrieved Matter . | . . . Parts Self-Destructed . | . . . Prevented . | . . . Kills | -11 -10 -10 ------- Run | Yrd Mat Min Combat Hostiles Destroyed 13 | . 9 4 Melee 4 | . 3 1 Guns 6 | . 6 . Classes Destroyed 3 | . 2 1 Watcher 1 | . 1 . Swarmer 12 | . 9 3 Assembled 1 | . . 1 Best Kill Streak 3 | . 3 3 Combat Bots Only 3 | . 3 3 Max Kills in Single Turn 1 | . 1 1 Gunslinging . | . . . Exploded . | . . . Melee 1 | . 1 1 Uniques/NPCs Destroyed . | . . . Combat | -11 -10 -10 -------- Run | Yrd Mat Min Hostile Shots Fired 103 | . 27 76 Missed 25 | . 8 17 Damage Taken 766 | . 161 605 Core 253 | . 17 236 Absorbed by Shields . | . . . Regen/Repaired (Parts) 26 | . 26 . Core Remaining (%) 100 | 100 . . Volleys Fired 12 | . 12 . Largest 2 | . 2 . Hottest 70 | . 70 . Shots Fired 24 | . 24 . Gun 24 | . 24 . Cannon . | . . . Launcher . | . . . Special . | . . . Kinetic 12 | . 12 . Thermal 12 | . 12 . Explosive . | . . . Electromagnetic . | . . . Robot Hit Streak 2 | . 2 . Robot Miss Streak 4 | . 4 . Penetration Max . | . . . Secondary Targets . | . . . Shots Hit Robots 35 | . 22 13 Core Hits 9 | . 9 . Critical Kills . | . . . Critical Parts Destroyed 4 | . 1 3 Critical Strikes 5 | . 2 3 Burn 1 | . 1 . Smash 4 | . 1 3 Melee Attacks 39 | . 13 26 Impact 34 | . 11 23 Slashing 5 | . 2 3 Piercing . | . . . Sneak Attacks 3 | . 2 1 Combat Hostiles 1 | . . 1 Follow-up Attacks 3 | . . 3 Damage Inflicted 834 | . 478 356 Guns 171 | . 171 . Cannons . | . . . Explosions . | . . . Melee 663 | . 307 356 Ramming . | . . . Kinetic 96 | . 96 . Thermal 75 | . 75 . Explosive . | . . . Electromagnetic . | . . . Impact 636 | . 307 329 Slashing 27 | . . 27 Piercing . | . . . Highest Corruption . | . . . Average Corruption . | . . . Corruption Purged . | . . . Corruption Blocked . | . . . Overload Shots . | . . . Overflow Damage 173 | . 77 96 Projectiles . | . . . Explosions . | . . . Melee 173 | . 77 96 Knockbacks 1 | . 1 . Impact 1 | . 1 . Kinetic . | . . . Secondary . | . . . Self-Inflicted Damage . | . . . Shots . | . . . Rammed . | . . . Targets Rammed . | . . . Kicked . | . . . Crushed . | . . . Highest Temperature . | . . . Average Temperature . | . . . Received Heat Transfer . | . . . Siege Activations . | . . . Robots Corrupted . | . . . Combat Hostiles . | . . . Parts Fried 4 | . . 4 Impact Corruptions 8 | . 2 6 Robots Melted . | . . . Combat Hostiles . | . . . Parts Melted . | . . . Heat Transferred 296 | . 296 . Parts Sabotaged . | . . . Parts Stolen . | . . . Parts Stripped . | . . . Power Chain Reactions . | . . . Alert | -11 -10 -10 ------- Run | Yrd Mat Min Peak Influence 249 | . 249 89 Initial 39 | . . 39 Average 85 | . 95 75 Maximum Alert Level 1 | . 1 . Low Security (%) 92 | 100 90 100 Level 1 7 | . 9 . Level 2 . | . . . Level 3 . | . . . Level 4 . | . . . Level 5 . | . . . High Security . | . . . Max Security . | . . . Squads Dispatched . | . . . Investigation . | . . . Extermination . | . . . Reinforcement . | . . . Assault . | . . . Garrison . | . . . Intercept . | . . . Searches Triggered . | . . . Construction Impeded . | . . . Haulers Reinforced . | . . . Active Scanning Responses . | . . . Cargo Convoy Interrupts . | . . . Stealth | -11 -10 -10 --------- Run | Yrd Mat Min Distress Signals . | . . . Communications Jammed . | . . . Distress Signals . | . . . Times Spotted 28 | . 15 13 Peak Tracking Total 15 | . 4 15 Tactical Retreats 2 | . 1 1 Traps | -11 -10 -10 ------- Run | Yrd Mat Min Traps Triggered 3 | . 3 . Indirectly . | . . . Trap Hack Attempts . | . . . Triggered . | . . . Disarmed . | . . . Reprogrammed . | . . . Reused . | . . . Traps Extracted . | . . . Installed . | . . . Triggered . | . . . Machines | -11 -10 -10 ---------- Run | Yrd Mat Min Machines Disabled . | . . . Max in Single Turn . | . . . Machines Repaired . | . . . Machines Dismantled . | . . . Machines Sabotaged . | . . . Overloaded Fab Kills . | . . . Hacking | -11 -10 -10 --------- Run | Yrd Mat Min Machines Accessed 6 | . 6 . Terminals 4 | . 4 . Fabricators . | . . . Repair Stations 1 | . 1 . Recycling Units 1 | . 1 . Scanalyzers . | . . . Garrison Access . | . . . Total Hacks 18 | . 18 . Successful 9 | . 9 . Failed 9 | . 9 . Catastrophic . | . . . Database Lockouts . | . . . Manual 10 | . 10 . Terminals 13 | . 13 . Fabricators . | . . . Repair Stations 2 | . 2 . Recycling Units 3 | . 3 . Scanalyzers . | . . . Garrison Access . | . . . Terminal Hacks 2 | . 2 . Robot Analysis 1 | . 1 . Locate Traps 1 | . 1 . Fabricator Hacks . | . . . Repair Station Hacks 2 | . 2 . Scan Component 1 | . 1 . Repair 1 | . 1 . Recycling Unit Hacks 1 | . 1 . Report Inventory 1 | . 1 . Scanalyzer . | . . . Garrison Access Hacks . | . . . Unauthorized Hacks 4 | . 4 . Terminals 2 | . 2 . Botnet 2 | . 2 . Fabricators . | . . . Repair Stations . | . . . Recycling Units 2 | . 2 . Monitor 1 | . 1 . Reject 1 | . 1 . Scanalyzers . | . . . Garrison Access . | . . . Data Cores Recovered . | . . . Used . | . . . Hacking Detections 6 | . 6 . Full Trace Events . | . . . Feedback Events . | . . . Feedback Blocked . | . . . Robot Schematics Acquired . | . . . Robots Built . | . . . Authchips . | . . . Time . | . . . Total Robot Build Rating . | . . . Part Schematics Acquired . | . . . Parts Built . | . . . Authchips . | . . . Time . | . . . Total Part Build Rating . | . . . Parts Repaired 1 | . 1 . Time 32 | . 32 . Parts Recycled . | . . . Recycled Matter . | . . . Retrieved Matter . | . . . Retrieved Components . | . . . Parts Scanalyzed . | . . . Part Schematics Acquired . | . . . Parts Damaged . | . . . Bothacking | -11 -10 -10 ------------ Run | Yrd Mat Min Used RIF Installer . | . . . Robots Hacked . | . . . Non-combat . | . . . Combat . | . . . Robot Hacks Applied . | . . . Relay Couplers Released . | . . . Fabnet Peak Effective % . | . . . Robots Rewired . | . . . Allies Hacked . | . . . Hacks Repelled . | . . . Allies | -11 -10 -10 -------- Run | Yrd Mat Min Total Allies . | . . . Largest Group . | . . . Highest-Rated Group . | . . . Highest-Rated Ally . | . . . Total Orders . | . . . Ally Attacks . | . . . Total Damage . | . . . Kills . | . . . Allies Corrupted . | . . . Allies Melted . | . . . Intel | -11 -10 -10 ------- Run | Yrd Mat Min Robot Analysis Total 1 | . 1 . Derelict Logs Recovered . | . . . Drone Launches . | . . . Drone Recoveries . | . . . Exploration | -11 -10 -10 ------------- Run | Yrd Mat Min Turns Passed 1006 | 76 772 158 Spaces Moved 616 | 50 493 73 Core 6 | 6 . . Treads . | . . . Legs 610 | 44 493 73 Wheels . | . . . Hover . | . . . Flight . | . . . Fastest Speed 50 | 50 120 120 Average Speed 120 | 111 121 120 Slowest Speed 190 | 120 190 120 Overloaded Moves . | . . . Propulsion Burnouts . | . . . Robots Hopped . | . . . Cave-ins Triggered . | . . . Exploration Rate (%) 33 | 3 79 19 Regions Visited 2 Branch Regions 1 Pre-discovered Areas . | . . . Known Exits Taken . | . . . Unknown Exits Taken 2 | 1 1 . Scrap Searched . | . . . Spaces Dug . | . . . Terrain Destroyed . | . . . Melee . | . . . Projectile . | . . . AOE . | . . . Terrain Rammed . | . . . Walls Destroyed . | . . . Machines Disabled . | . . . Actions | -11 -10 -10 --------- Run | Yrd Mat Min Total 787 | 67 617 103 Wait 90 | 11 73 6 Move 614 | 49 492 73 Hop . | . . . Pick Up 8 | 1 7 . Fast Attach 17 | 6 11 . Attach 1 | . . 1 Detach 3 | . 3 . Swap 3 | . 3 . Drop 4 | . 4 . Fire 12 | . 12 . Melee 35 | . 12 23 Ram . | . . . Kick . | . . . Crush . | . . . Escape Stasis . | . . . Rewire . | . . . Trap . | . . . Miscellaneous . | . . . Route ------- -11/Scrapyard -10/Materials (discovered 4 exits: [*Mat x2] / [*Min x2]) -10/Mines History --------- Turn | Location | Event 33 | -11/Scrapyard | Discovered new exit (range 16) 77 | -11/Scrapyard | Entered Materials 170 | -10/Materials | Discovered new exit (range 15) 295 | -10/Materials | Discovered new exit (range 3) 300 | -10/Materials | Build established: Mutant 399 | -10/Materials | Discovered new exit (range 7) 733 | -10/Materials | Repaired Imp. Aluminum Leg 749 | -10/Materials | Discovered new exit (range 5) 777 | -10/Materials | Derelicts attacked the area 849 | -10/Materials | Entered Mines 957 | -10/Mines | Assembled infested the area 991 | -10/Mines | Core integrity fell below 50% 1002 | -10/Mines | Core integrity fell below 20% 1007 | -10/Mines | Destroyed by as-15570 with Assembled Rifle Last Messages --------------- 00881_ S-10 Pest suffers critical hit (Smash). 00881_ Destroyed Lgt. Ion Engine. 00881_ Destroyed Flight Unit. 00881_ S-10 Pest system corrupted by crushing effect. 00882_ S-10 Pest system terminally corrupted. 00882_ Lgt. Assault Rifle fried. 00885_ Acquired 8 matter. 00886_ Acquired 11 matter. 00901_ T-07 Excavator is excavating. 00957_ ALERT: Infestation in the mines, dispatching Demolisher response squad. 00981_ Imp. Aluminum Leg destroyed. 00983_ Mining Claw follow-up attack on as-67526. 00986_ Mining Claw follow-up attack on as-25395. 00987_ Imp. Aluminum Leg destroyed. 00990_ as-25395 suffers critical hit (Smash). 00990_ Destroyed Asb. Heavy Rifle. 00990_ as-25395 system corrupted by crushing effect. 00990_ as-25395 destroyed. 00993_ Lgt. Ion Engine destroyed. Map ----- +----------------------------------------------------+ | | | | | | | | | | | | | | | | | | | | | | | ???????????????????????????????????????????????? | | ???????????????????????????????????????????????? | | ???????????????????????????????????????????????? | | ???????????????????????????????????????????????? | | ???????????????????????????????????????????????? | | ???????????????????????????????????????????????? | | ?????????????????????????????#######???????????? | | ????????????????????????###??# #???????????? | | ???????????????????????? ##?# #??????###??? | | ???????????????????????? t #?# #?????? #??? | | ????????????????????????# #?# """ ######?# #??? | | ????????????????????????# #?# """ #?# #??? | | ????????????????????????# #?# """ #### #?# #??? | | ????????????????????????# #?# #?## ### #??? | | ????????????????????????#@ #?### ###?# #??? | | ???????????## ##########aa#???# #???# #####??? | | ???? aa #???# ##### #??????? | | ???? #???# #??????? | | ???????### ######### #???#### ## #??????? | | ?????????## ""??????????# #??????# ## #??????? | | ??????????# ????????????# ######## ## #??????? | | ????????????????????????# ## ## #??????? | | ????????????????????????# ## ##### ## #??????? | | ???????????????????????## ## #?## #??????? | | ??????????????????????## ### #??????? | | ??????????????????????# ##??????? | | ??????????????????????# ##??????? | | ??????????????????????## ###????? | | ???????????????????????## ##???? | | ????????????????????????# ##??? | | ????????????????????????# #??? | | ????????????????????????## ## ## ##??? | | ?????????????????????????## #### ##?##???? | | ??????????????????????????######?## #???????? | | ?????????????????????????????????# ##???????? | | ????????????????????????????????# #????????? | | ????????????????????????????????# #????????? | | ???????????????????????????????# #????????? | | ???????????????????????????????# #????????? | +----------------------------------------------------+ Best States ------------- Heat Dissipation 47 Energy Generation 10 Energy Capacity 250 Matter Stores 300 Matter Capacity 300 Sight Range 16 Robot Scan Range 14 Terrain Scan Density 10 Evasion (%) 55 Item Schematics ----------------- None Robot Schematics ------------------ None Fabricated ------------ Nothing Alien Tech Used ----------------- None Achievements -------------- None Challenges ------------ None Game ------ Seed ScatterLatentMount Manual? 0 Play Time 00:09:09 Cumulative 80.1 hours Start 2024.05.10 @ 12:59:03 End 2024.05.10 @ 13:07:06 Sessions 1 Manual Loads 0 Difficulty Rogue Special Mode None Game No. 76 Rogue 76 Adventurer 0 Explorer 0 Win Type - Total 3 Types 2/0/0/1/0/0/0/0/0 Lore% 58 Gallery% 63 Achievement% 51 Wizard Run 0 Options --------- Layout 0 ASCII 0 Keyboard 0 Movement Numpad Keybinds 0 Fullscreen 1 Font 18/Terminus Map View 76x50 Zoom Use 0% Tactical HUD 1 Map Filters NONE Filters NONE Steam 1 RUN: 0c981288-17ee-45b6-942f-44073b1088d1